Workbook

Sheet Sheet1
A1: Hypromellose
A2: Viscosity CoA | B2: 4350
A3: Nominal viscosity | B3: 4000
A4: % above nomnal | B4: =(B2/B3) -> 1.0875
A7: Viscosity measurements
A8: 529-2306-76: | B8: 1,5% Hypromellose | C8: Set 1 | G8: Set 2 | L8: Set 3 | Q8: Summary
B9: Point | C9: Viscosity (cP) | D9: Torq (%) | E9: Speed (rpm) | G9: Point | H9: Viscosity (cP) | I9: Torq (%) | J9: Speed (rpm) | L9: Point | M9: Viscosity (cP) | N9: Torq (%) | O9: Speed (rpm) | Q9: % Hypromellose | R9: Viscosity | S9: % of nominal viscosity | T9: % of CoA viscosity | U9: Increase/decrease from 2%
B10: 1 | C10: 1040 | D10: 15.6 | E10: 60 | G10: 1 | H10: 1040 | I10: 15.6 | J10: 60 | L10: 1 | M10: 1040 | N10: 15.6 | O10: 60 | Q10: 1.5 | R10: =AVERAGE(C15,H15,M15) -> 1040 | S10: =(R10/$B$3) -> 0.26 | T10: =(R10/$B$2) -> 0.2390804598 | U10: =(R10/$R$28) -> 0.3989259685
B11: 2 | C11: 1040 | D11: 15.6 | E11: 60 | G11: 2 | H11: 1040 | I11: 15.6 | J11: 60 | L11: 2 | M11: 1040 | N11: 15.6 | O11: 60
B12: 3 | C12: 1040 | D12: 15.6 | E12: 60 | G12: 3 | H12: 1040 | I12: 15.6 | J12: 60 | L12: 3 | M12: 1040 | N12: 15.6 | O12: 60
B13: 4 | C13: 1040 | D13: 15.6 | E13: 60 | G13: 4 | H13: 1040 | I13: 15.6 | J13: 60 | L13: 4 | M13: 1040 | N13: 15.6 | O13: 60
B14: 5 | C14: 1040 | D14: 15.6 | E14: 60 | G14: 5 | H14: 1040 | I14: 15.6 | J14: 60 | L14: 5 | M14: 1040 | N14: 15.6 | O14: 60
B15: Avg | C15: =AVERAGE(C10:C14) -> 1040 | D15: =AVERAGE(D10:D14) -> 15.6 | E15: =AVERAGE(E10:E14) -> 60 | G15: Avg | H15: =AVERAGE(H10:H14) -> 1040 | I15: =AVERAGE(I10:I14) -> 15.6 | J15: =AVERAGE(J10:J14) -> 60 | L15: Avg | M15: =AVERAGE(M10:M14) -> 1040 | N15: =AVERAGE(N10:N14) -> 15.6 | O15: =AVERAGE(O10:O14) -> 60
A17: 529-2306-77: | B17: 1,8% Hypromellose | C17: Set 1 | G17: Set 2 | L17: Set 3 | Q17: Summary
B18: Point | C18: Viscosity (cP) | D18: Torq (%) | E18: Speed (rpm) | G18: Point | H18: Viscosity (cP) | I18: Torq (%) | J18: Speed (rpm) | L18: Point | M18: Viscosity (cP) | N18: Torq (%) | O18: Speed (rpm) | Q18: % Hypromellose | R18: Viscosity | S18: % of nominal viscosity | T18: % of CoA viscosity | U18: Increase/decrease from 2%
B19: 1 | C19: 1793 | D19: 26.9 | E19: 60 | G19: 1 | H19: 1787 | I19: 26.8 | J19: 60 | L19: 1 | M19: 1787 | N19: 26.8 | O19: 60 | Q19: 1.8 | R19: =AVERAGE(C24,H24,M24) -> 1789 | S19: =(R19/$B$3) -> 0.44725 | T19: =(R19/$B$2) -> 0.4112643678 | U19: =(R19/$R$28) -> 0.6862293824
B20: 2 | C20: 1793 | D20: 26.9 | E20: 60 | G20: 2 | H20: 1787 | I20: 26.8 | J20: 60 | L20: 2 | M20: 1787 | N20: 26.8 | O20: 60
B21: 3 | C21: 1793 | D21: 26.9 | E21: 60 | G21: 3 | H21: 1787 | I21: 26.8 | J21: 60 | L21: 3 | M21: 1787 | N21: 26.8 | O21: 60
B22: 4 | C22: 1793 | D22: 26.9 | E22: 60 | G22: 4 | H22: 1787 | I22: 26.8 | J22: 60 | L22: 4 | M22: 1787 | N22: 26.8 | O22: 60
B23: 5 | C23: 1793 | D23: 26.9 | E23: 60 | G23: 5 | H23: 1787 | I23: 26.8 | J23: 60 | L23: 5 | M23: 1787 | N23: 26.8 | O23: 60
B24: Avg | C24: =AVERAGE(C19:C23) -> 1793 | D24: =AVERAGE(D19:D23) -> 26.9 | E24: =AVERAGE(E19:E23) -> 60 | G24: Avg | H24: =AVERAGE(H19:H23) -> 1787 | I24: =AVERAGE(I19:I23) -> 26.8 | J24: =AVERAGE(J19:J23) -> 60 | L24: Avg | M24: =AVERAGE(M19:M23) -> 1787 | N24: =AVERAGE(N19:N23) -> 26.8 | O24: =AVERAGE(O19:O23) -> 60
A26: 529-2306-78: | B26: 2% Hypromellose | C26: Set 1 | G26: Set 2 | L26: Set 3 | Q26: Summary
B27: Point | C27: Viscosity (cP) | D27: Torq (%) | E27: Speed (rpm) | G27: Point | H27: Viscosity (cP) | I27: Torq (%) | J27: Speed (rpm) | L27: Point | M27: Viscosity (cP) | N27: Torq (%) | O27: Speed (rpm) | Q27: % Hypromellose | R27: Viscosity | S27: % of nominal viscosity | T27: % of CoA viscosity | U27: Increase/decrease from 2%
B28: 1 | C28: 2607 | D28: 39.1 | E28: 60 | G28: 1 | H28: 2607 | I28: 39.1 | J28: 60 | L28: 1 | M28: 2607 | N28: 39.1 | O28: 60 | Q28: 2 | R28: =AVERAGE(C33,H33,M33) -> 2607 | S28: =(R28/$B$3) -> 0.65175 | T28: =(R28/$B$2) -> 0.5993103448 | U28: =(R28/$R$28) -> 1
B29: 2 | C29: 2607 | D29: 39.1 | E29: 60 | G29: 2 | H29: 2607 | I29: 39.1 | J29: 60 | L29: 2 | M29: 2607 | N29: 39.1 | O29: 60
B30: 3 | C30: 2607 | D30: 39.1 | E30: 60 | G30: 3 | H30: 2607 | I30: 39.1 | J30: 60 | L30: 3 | M30: 2607 | N30: 39.1 | O30: 60
B31: 4 | C31: 2607 | D31: 39.1 | E31: 60 | G31: 4 | H31: 2607 | I31: 39.1 | J31: 60 | L31: 4 | M31: 2607 | N31: 39.1 | O31: 60
B32: 5 | C32: 2607 | D32: 39.1 | E32: 60 | G32: 5 | H32: 2607 | I32: 39.1 | J32: 60 | L32: 5 | M32: 2607 | N32: 39.1 | O32: 60
B33: Avg | C33: =AVERAGE(C28:C32) -> 2607 | D33: =AVERAGE(D28:D32) -> 39.1 | E33: =AVERAGE(E28:E32) -> 60 | G33: Avg | H33: =AVERAGE(H28:H32) -> 2607 | I33: =AVERAGE(I28:I32) -> 39.1 | J33: =AVERAGE(J28:J32) -> 60 | L33: Avg | M33: =AVERAGE(M28:M32) -> 2607 | N33: =AVERAGE(N28:N32) -> 39.1 | O33: =AVERAGE(O28:O32) -> 60
A35: 529-2306-79: | B35: 2,2% Hypromellose | C35: Set 1 | G35: Set 2 | L35: Set 3 | Q35: Summary
B36: Point | C36: Viscosity (cP) | D36: Torq (%) | E36: Speed (rpm) | G36: Point | H36: Viscosity (cP) | I36: Torq (%) | J36: Speed (rpm) | L36: Point | M36: Viscosity (cP) | N36: Torq (%) | O36: Speed (rpm) | Q36: % Hypromellose | R36: Viscosity | S36: % of nominal viscosity | T36: % of CoA viscosity | U36: Increase/decrease from 2%
B37: 1 | C37: 3280 | D37: 49.2 | E37: 60 | G37: 1 | H37: 3280 | I37: 49.2 | J37: 60 | L37: 1 | M37: 3273 | N37: 49.1 | O37: 60 | Q37: 2.2 | R37: =AVERAGE(C42,H42,M42) -> 3277.666667 | S37: =(R37/$B$3) -> 0.8194166667 | T37: =(R37/$B$2) -> 0.75348659 | U37: =(R37/$R$28) -> 1.257256105
B38: 2 | C38: 3280 | D38: 49.2 | E38: 60 | G38: 2 | H38: 3280 | I38: 49.2 | J38: 60 | L38: 2 | M38: 3273 | N38: 49.1 | O38: 60
B39: 3 | C39: 3280 | D39: 49.2 | E39: 60 | G39: 3 | H39: 3280 | I39: 49.2 | J39: 60 | L39: 3 | M39: 3273 | N39: 49.1 | O39: 60
B40: 4 | C40: 3280 | D40: 49.2 | E40: 60 | G40: 4 | H40: 3280 | I40: 49.2 | J40: 60 | L40: 4 | M40: 3273 | N40: 49.1 | O40: 60
B41: 5 | C41: 3280 | D41: 49.2 | E41: 60 | G41: 5 | H41: 3280 | I41: 49.2 | J41: 60 | L41: 5 | M41: 3273 | N41: 49.1 | O41: 60
B42: Avg | C42: =AVERAGE(C37:C41) -> 3280 | D42: =AVERAGE(D37:D41) -> 49.2 | E42: =AVERAGE(E37:E41) -> 60 | G42: Avg | H42: =AVERAGE(H37:H41) -> 3280 | I42: =AVERAGE(I37:I41) -> 49.2 | J42: =AVERAGE(J37:J41) -> 60 | L42: Avg | M42: =AVERAGE(M37:M41) -> 3273 | N42: =AVERAGE(N37:N41) -> 49.1 | O42: =AVERAGE(O37:O41) -> 60
A44: 529-2306-80: | B44: 2,5% Hypromellose | C44: Set 1 | G44: Set 2 | L44: Set 3 | Q44: Summary
B45: Point | C45: Viscosity (cP) | D45: Torq (%) | E45: Speed (rpm) | G45: Point | H45: Viscosity (cP) | I45: Torq (%) | J45: Speed (rpm) | L45: Point | M45: Viscosity (cP) | N45: Torq (%) | O45: Speed (rpm) | Q45: % Hypromellose | R45: Viscosity | S45: % of nominal viscosity | T45: % of CoA viscosity | U45: Increase/decrease from 2%
B46: 1 | C46: 4760 | D46: 71.4 | E46: 60 | G46: 1 | H46: 4760 | I46: 71.4 | J46: 60 | L46: 1 | M46: 4760 | N46: 71.4 | O46: 60 | Q46: 2.5 | R46: =AVERAGE(C51,H51,M51) -> 4760 | S46: =(R46/$B$3) -> 1.19 | T46: =(R46/$B$2) -> 1.094252874 | U46: =(R46/$R$28) -> 1.825853471
B47: 2 | C47: 4760 | D47: 71.4 | E47: 60 | G47: 2 | H47: 4760 | I47: 71.4 | J47: 60 | L47: 2 | M47: 4760 | N47: 71.4 | O47: 60
B48: 3 | C48: 4760 | D48: 71.4 | E48: 60 | G48: 3 | H48: 4760 | I48: 71.4 | J48: 60 | L48: 3 | M48: 4760 | N48: 71.4 | O48: 60
B49: 4 | C49: 4760 | D49: 71.4 | E49: 60 | G49: 4 | H49: 4760 | I49: 71.4 | J49: 60 | L49: 4 | M49: 4760 | N49: 71.4 | O49: 60
B50: 5 | C50: 4760 | D50: 71.4 | E50: 60 | G50: 5 | H50: 4760 | I50: 71.4 | J50: 60 | L50: 5 | M50: 4760 | N50: 71.4 | O50: 60
B51: Avg | C51: =AVERAGE(C46:C50) -> 4760 | D51: =AVERAGE(D46:D50) -> 71.4 | E51: =AVERAGE(E46:E50) -> 60 | G51: Avg | H51: =AVERAGE(H46:H50) -> 4760 | I51: =AVERAGE(I46:I50) -> 71.4 | J51: =AVERAGE(J46:J50) -> 60 | L51: Avg | M51: =AVERAGE(M46:M50) -> 4760 | N51: =AVERAGE(N46:N50) -> 71.4 | O51: =AVERAGE(O46:O50) -> 60
